fUST/lending_fUST_20250614
["ID","MTS","AMOUNT","RATE_DAILY","PERIOD"]
[365744782,1749868238787,-460.0,0.00021191,4]
[365744783,1749868238796,-416.03661962,0.00021191,4]
[365744784,1749868238806,-402.07569889,0.00021191,4]
[365744785,1749868238815,-416.63014132,0.00021191,4]
[365744786,1749868238824,-460.0,0.00021191,4]
[365744787,1749868238833,-460.0,0.00021191,4]
[365744788,1749868238842,-411.01541395,0.00021191,4]
[365744789,1749868238853,-363.74575296,0.00021191,4]
[365744790,1749868238864,-406.18433153,0.00021191,4]
[365744791,1749868238874,-454.15390702,0.00021191,4]
[365744792,1749868238884,-460.0,0.00021191,4]
[365744793,1749868238894,-166.90869552,0.00021191,4]
[365744794,1749868238905,-400.0,0.00021191,4]
[365744795,1749868238915,-460.0,0.00021191,4]
[365744796,1749868238924,-431.45066727,0.00021191,4]
[365744797,1749868238937,-404.08335746,0.0002141,2]
[365744798,1749868238947,-1816.08,0.0002145,2]
[365744799,1749868238956,-500.0,0.00021462,2]
[365744800,1749868238965,-232.2035279,0.00021462,2]
[365744801,1749868238974,-188.60321256,0.00021462,2]
[365744802,1749868238983,-460.0,0.00021463,4]
[365744803,1749868238992,-767.62,0.00021463,4]
[365744804,1749868239002,-3362.78,0.00021463,4]
[365744805,1749868239011,-587.77,0.00021463,4]
[365744806,1749868239020,-974.79,0.00021463,4]
[365744807,1749868239133,-460.0,0.00021463,4]
[365744808,1749868239143,-641.21,0.00021463,4]
[365744809,1749868239153,-791.92,0.00021463,4]
[365744810,1749868239162,-460.0,0.00021463,4]
[365744811,1749868239171,-461.04,0.00021463,4]
[365744812,1749868239181,-460.0,0.00021463,4]
[365744813,1749868239190,-460.0,0.00021464,4]
[365744814,1749868239199,-460.0,0.00021464,4]
[365744815,1749868239208,-460.0,0.00021464,4]
[365744816,1749868239217,-460.0,0.00021464,4]
[365744817,1749868239226,-460.0,0.00021464,4]
[365744818,1749868239235,-460.0,0.00021464,4]
[365744819,1749868239244,-614.97,0.00021464,2]
[365744820,1749868239253,-460.0,0.00021464,4]
[365744821,1749868239263,-460.0,0.00021464,4]
[365744822,1749868239272,-213.06438386,0.00021464,4]
[365744823,1749868239281,-460.0,0.00021464,4]
[365744824,1749868239290,-492.85,0.00021464,4]
[365744825,1749868239299,-460.0,0.00021464,4]
[365744826,1749868239309,-460.0,0.00021464,4]
[365744827,1749868239318,-460.0,0.00021464,4]
[365744828,1749868239328,-486.56,0.00021464,4]
[365744829,1749868239337,-460.0,0.00021464,4]
[365744830,1749868239347,-460.0,0.00021464,4]
[365744831,1749868239356,-460.0,0.00021464,4]
[365744832,1749868239366,-460.0,0.00021464,4]
[365744833,1749868239375,-581.52,0.00021464,4]
[365744834,1749868239385,-460.0,0.00021464,4]
[365744835,1749868239395,-1231.38,0.00021464,4]
[365744836,1749868239404,-460.0,0.00021464,4]
[365744837,1749868239414,-460.0,0.00021464,4]
[365744838,1749868239423,-460.0,0.00021464,4]
[365744839,1749868239434,-460.0,0.00021465,4]
[365744840,1749868239443,-258.17559289,0.00021465,4]
[365744841,1749868239454,-6194.86629613,0.00021466,2]
[365744842,1749868239463,-4037.9737863,0.00021559,2]
[365744843,1749868239473,-316.65156987,0.00021626,2]
[365744844,1749868239483,-516.61789711,0.00021636,2]
[365744845,1749868239493,-407.5450913,0.0002168,2]
[365744846,1749868239503,-270.04,0.00021728,10]
[365744847,1749868239512,-460.0,0.00021737,4]
[365744848,1749868239521,-767.62,0.00021737,4]
[365744849,1749868239531,-3362.78,0.00021737,4]
[365744850,1749868239540,-587.77,0.00021737,4]
[365744851,1749868239550,-974.79,0.00021737,4]
[365744852,1749868239559,-460.0,0.00021737,4]
[365744853,1749868239569,-641.21,0.00021737,4]
[365744854,1749868239580,-791.92,0.00021737,4]
[365744855,1749868239590,-461.04,0.00021737,4]
[365744857,1749868239600,-460.0,0.00021737,4]
[365744859,1749868239610,-460.0,0.00021738,4]
[365744861,1749868239619,-460.0,0.00021738,4]
[365744863,1749868239629,-259.40460734,0.00021738,4]
[365744865,1749868239639,-460.0,0.00021738,4]
[365744866,1749868239649,-614.97,0.00021738,2]
[365744867,1749868239659,-460.0,0.00021738,4]
[365744868,1749868239668,-460.0,0.00021738,4]
[365744869,1749868239678,-460.0,0.00021738,4]
[365744870,1749868239688,-492.85,0.00021738,4]
[365744871,1749868239698,-460.0,0.00021738,4]
[365744872,1749868239709,-460.0,0.00021738,4]
[365744873,1749868239718,-460.0,0.00021738,4]
[365744874,1749868239727,-486.56,0.00021738,4]
[365744875,1749868239737,-460.0,0.00021738,4]
[365744876,1749868239746,-460.0,0.00021738,4]
[365744877,1749868239755,-460.0,0.00021738,4]
[365744878,1749868239765,-460.0,0.00021738,4]
[365744879,1749868239775,-581.52,0.00021738,4]
[365744880,1749868239787,-460.0,0.00021738,4]
[365744881,1749868239798,-1231.38,0.00021738,4]
[365744882,1749868239808,-460.0,0.00021738,4]
[365744883,1749868239819,-460.0,0.00021738,4]
[365744884,1749868239828,-460.0,0.00021739,4]
[365744885,1749868239838,-500.0,0.00021789,2]
[365744886,1749868239847,-500.0,0.00021794,2]
[365744887,1749868239860,-1295.86461377,0.000219,6]
[365744889,1749868239870,-162.272538,0.00021918,2]
[365744890,1749868239879,-420.0,0.00021978,2]
[365744891,1749868239888,-1295.86461362,0.00022003,6]
[365744892,1749868239898,-760.10302787,0.00022004,2]
[365744893,1749868239908,-460.0,0.00022011,4]
[365744894,1749868239917,-767.62,0.00022011,4]
[365744896,1749868239927,-3362.78,0.00022011,4]
[365744897,1749868239938,-587.77,0.00022011,4]
[365744898,1749868239948,-974.79,0.00022011,4]
[365744899,1749868239957,-460.0,0.00022011,4]
[365744900,1749868239966,-641.21,0.00022011,4]
[365744901,1749868239976,-791.92,0.00022011,4]
[365744902,1749868239985,-461.04,0.00022011,4]
[365744903,1749868239994,-460.0,0.00022011,4]
[365744904,1749868240003,-460.0,0.00022012,4]
[365744905,1749868240013,-460.0,0.00022012,4]
[365744906,1749868240022,-460.0,0.00022012,4]
[365744907,1749868240031,-614.97,0.00022012,2]
[365744908,1749868240040,-460.0,0.00022012,4]
[365744909,1749868240049,-460.0,0.00022012,4]
[365744910,1749868240058,-460.0,0.00022012,4]
[365744911,1749868240068,-492.85,0.00022012,4]
[365744912,1749868240078,-377.77576305,0.00022012,4]
[365744913,1749868240088,-460.0,0.00022012,4]
[365744914,1749868240097,-227.28701933,0.00022012,4]
[365744915,1749868240105,-486.56,0.00022012,4]
[365744916,1749868240114,-393.0698166,0.00022012,4]
[365744917,1749868240123,-460.0,0.00022012,4]
[365744918,1749868240132,-460.0,0.00022012,4]
[365744919,1749868240142,-512.02144995,0.00022012,4]
[365744920,1749868240151,-581.52,0.00022012,4]
[365744921,1749868240162,-460.0,0.00022012,4]
[365744922,1749868240172,-1231.38,0.00022012,4]
[365744923,1749868240183,-460.0,0.00022012,4]
[365744924,1749868240194,-460.0,0.00022012,4]
[365744925,1749868240204,-1295.86461362,0.00022107,6]
[365744926,1749868240214,-316.65156987,0.00022163,2]
[365744927,1749868240223,-1295.86461362,0.0002221,6]
[365744928,1749868240233,-705.31,0.00022236,7]
[365744929,1749868240243,-852.01,0.00022276,3]
[365744930,1749868240253,-426.0,0.00022276,3]
[365744931,1749868240263,-213.0,0.00022276,3]
[365744932,1749868240272,-639.03,0.00022276,3]
[365744933,1749868240282,-744.80425003,0.0002228,2]
[365744934,1749868240291,-460.0,0.00022285,4]
[365744935,1749868240300,-767.62,0.00022285,4]
[365744936,1749868240309,-3362.78,0.00022285,4]
[365744937,1749868240318,-587.77,0.00022285,4]
[365744938,1749868240328,-974.79,0.00022285,4]
[365744939,1749868240337,-460.0,0.00022285,4]
[365744940,1749868240346,-641.21,0.00022285,4]
[365744941,1749868240356,-791.92,0.00022285,4]
[365744942,1749868240365,-461.04,0.00022285,4]
[365744943,1749868240375,-460.0,0.00022285,4]
[365744944,1749868240384,-460.0,0.00022286,4]
[365744945,1749868240394,-460.0,0.00022286,4]
[365744946,1749868240403,-460.0,0.00022286,4]
[365744947,1749868240412,-614.97,0.00022286,2]
[365744948,1749868240422,-460.0,0.00022286,4]
[365744949,1749868240431,-460.0,0.00022286,4]
[365744950,1749868240440,-460.0,0.00022286,4]
[365744951,1749868240449,-492.85,0.00022286,4]
[365744952,1749868240458,-460.0,0.00022286,4]
[365744953,1749868240467,-486.56,0.00022286,4]
[365744954,1749868240476,-460.0,0.00022286,4]
[365744955,1749868240486,-479.23088691,0.00022286,4]
[365744956,1749868240495,-581.52,0.00022286,4]
[365744957,1749868240505,-460.0,0.00022286,4]
[365744958,1749868240514,-1231.38,0.00022286,4]
[365744959,1749868240523,-460.0,0.00022286,4]
[365744960,1749868240532,-460.0,0.00022286,4]
[365744961,1749868240542,-500.0,0.00022313,2]
[365744962,1749868240551,-500.0,0.00022313,2]
[365744963,1749868240560,-630.78540054,0.00022313,2]
[365744964,1749868240569,-500.0,0.00022313,2]
[365744965,1749868240578,-500.0,0.00022313,2]
[365744966,1749868240587,-500.0,0.00022313,2]
[365744967,1749868240596,-512.55088982,0.00022313,2]
[365744968,1749868240605,-1295.86461362,0.00022314,7]
[365744969,1749868240614,-705.31,0.00022336,2]
[365744970,1749868240623,-1000.0,0.00022337,2]
[365744971,1749868240632,-1000.0,0.00022342,2]
[365744972,1749868240641,-5000.0,0.00022344,2]
[365744973,1749868240650,-207.4,0.00022344,2]
[365744974,1749868240659,-251.08335746,0.00022365,2]
[365744975,1749868240668,-160.0,0.0002239,3]
[365744976,1749868240677,-1295.86461362,0.00022417,7]
[365744977,1749868240686,-705.31,0.00022436,6]
[365744978,1749868240696,-1608.89806049,0.0002246,2]
[365744979,1749868240705,-500.0,0.00022466,2]
[365744980,1749868240714,-500.0,0.00022466,2]
[365744981,1749868240723,-381.6355257,0.00022466,2]
[365744982,1749868240732,-500.0,0.00022466,2]
[365744983,1749868240741,-500.0,0.00022466,2]
[365744984,1749868240750,-500.0,0.00022466,2]
[365744985,1749868240759,-500.0,0.00022466,2]
[365744986,1749868240768,-500.0,0.00022466,2]
[365744987,1749868240777,-500.0,0.00022466,2]
[365744988,1749868240786,-500.0,0.00022466,2]
[365744989,1749868240795,-500.0,0.00022466,2]
[365744990,1749868240805,-500.0,0.00022466,2]
[365744991,1749868240814,-500.0,0.00022466,2]
[365744992,1749868240822,-500.0,0.00022466,2]
[365744993,1749868240831,-500.0,0.00022466,2]
[365744994,1749868240840,-500.0,0.00022466,2]
[365744995,1749868240849,-500.0,0.00022466,2]
[365744996,1749868240860,-500.0,0.00022466,2]
[365744997,1749868240870,-1295.86461362,0.00022521,7]
[365744998,1749868240878,-705.31,0.00022536,7]
[365744999,1749868240888,-460.0,0.00022559,4]
[365745000,1749868240896,-767.62,0.00022559,4]
[365745001,1749868240905,-3362.78,0.00022559,4]
[365745002,1749868240915,-587.77,0.00022559,4]
[365745003,1749868240924,-974.79,0.00022559,4]
[365745004,1749868240935,-460.0,0.00022559,4]
[365745005,1749868240945,-641.21,0.00022559,4]
[365745006,1749868240955,-791.92,0.00022559,4]
[365745007,1749868240963,-461.04,0.00022559,4]
[365745008,1749868240972,-460.0,0.00022559,4]
[365745009,1749868240981,-500.0,0.0002256,2]
[365745010,1749868240990,-500.0,0.0002256,2]
[365745011,1749868240999,-160.0,0.0002256,2]
[365745012,1749868241008,-460.0,0.0002256,4]
[365745013,1749868241017,-460.0,0.0002256,4]
[365745014,1749868241026,-460.0,0.0002256,4]
[365745015,1749868241035,-614.97,0.0002256,2]
[365745016,1749868241044,-460.0,0.0002256,4]
[365745017,1749868241054,-460.0,0.0002256,4]
[365745018,1749868241063,-460.0,0.0002256,4]
[365745019,1749868241072,-492.85,0.0002256,4]
[365745020,1749868241081,-460.0,0.0002256,4]
[365745021,1749868241090,-486.56,0.0002256,4]
[365745022,1749868241099,-460.0,0.0002256,4]
[365745023,1749868241108,-581.52,0.0002256,4]
[365745024,1749868241117,-460.0,0.0002256,4]
[365745025,1749868241127,-1231.38,0.0002256,4]
[365745026,1749868241136,-460.0,0.0002256,4]
[365745027,1749868241145,-460.0,0.0002256,4]
[365745028,1749868241154,-160.0,0.00022615,2]
[365745029,1749868241163,-160.0,0.00022615,2]
[365745030,1749868241172,-845.10789306,0.00022615,2]
[365745031,1749868241181,-424.40141186,0.00022615,2]
[365745032,1749868241190,-160.0,0.00022615,2]
[365745033,1749868241199,-160.0,0.00022615,2]
[365745034,1749868241208,-229.82479369,0.00022615,2]
[365745035,1749868241217,-160.0,0.00022615,2]
[365745036,1749868241226,-213.28201367,0.00022615,2]
[365745037,1749868241236,-835.41710878,0.00022615,2]
[365745038,1749868241245,-12533.30537164,0.00022615,2]
[365745039,1749868241254,-160.0,0.00022615,2]
[365745040,1749868241263,-160.0,0.00022615,2]
[365745041,1749868241272,-160.0,0.00022615,2]
[365745042,1749868241282,-1295.86461362,0.00022624,7]
[365745043,1749868241291,-705.31,0.00022636,3]
[365745044,1749868241302,-316.65156987,0.00022699,2]
[365745045,1749868241312,-255.0,0.0002271,2]
[365745046,1749868241322,-330.86116741,0.00022715,2]
[365745047,1749868241420,-1295.86461362,0.00022728,7]
[365745048,1749868241430,-705.31,0.00022736,2]
[365745049,1749868241440,-1608.89806048,0.00022767,2]
[365745050,1749868241450,-151.0,0.000228,6]
[365745051,1749868241459,-18665.72432283,0.000228,2]
[365745052,1749868241469,-1295.86461362,0.00022831,8]
[365745053,1749868241479,-554.84867809,0.00022833,4]
[365745054,1749868241490,-767.62,0.00022833,4]
[365745055,1749868241500,-3362.78,0.00022833,4]
[365745056,1749868241510,-587.77,0.00022833,4]
[365745057,1749868241520,-974.79,0.00022833,4]
[365745058,1749868241530,-460.0,0.00022833,4]
[365745059,1749868241539,-641.21,0.00022833,4]
[365745060,1749868241551,-791.92,0.00022833,4]
[365745061,1749868241561,-461.04,0.00022833,4]
[365745062,1749868241570,-460.0,0.00022833,4]
[365745063,1749868241579,-460.0,0.00022834,4]
[365745064,1749868241589,-460.0,0.00022834,4]
[365745065,1749868241599,-460.0,0.00022834,4]
[365745066,1749868241608,-614.97,0.00022834,2]
[365745067,1749868241617,-460.0,0.00022834,4]
[365745068,1749868241627,-460.0,0.00022834,4]
[365745069,1749868241637,-460.0,0.00022834,4]
[365745070,1749868241646,-492.85,0.00022834,4]
[365745071,1749868241655,-460.0,0.00022834,4]
[365745072,1749868241664,-486.56,0.00022834,4]
[365745073,1749868241674,-460.0,0.00022834,4]
[365745074,1749868241683,-581.52,0.00022834,4]
[365745075,1749868241693,-460.0,0.00022834,4]
[365745076,1749868241703,-1231.38,0.00022834,4]
[365745077,1749868241712,-460.0,0.00022834,4]
[365745078,1749868241722,-460.0,0.00022834,4]
[365745079,1749868241731,-705.31,0.00022836,4]
[365745080,1749868241740,-1510.97157192,0.00022885,2]
[365745081,1749868241750,-629.12877101,0.0002289,2]
[365745082,1749868241759,-5000.0,0.00022892,2]
[365745083,1749868241768,-160.0,0.00022895,4]
[365745084,1749868241778,-151.0,0.000229,7]
[365745085,1749868241787,-85507.04,0.000229,7]
[365745086,1749868241797,-845.10789306,0.000229,7]
[365745087,1749868241807,-160.0,0.000229,7]
[365745088,1749868241816,-213.28201367,0.000229,7]
[365745089,1749868241826,-1295.86461362,0.00022934,8]
[365745090,1749868241835,-705.31,0.00022936,7]
[365745091,1749868241845,-5000.0,0.00022937,2]
[365745092,1749868241854,-12071.34216834,0.00023,2]
[365745093,1749868241866,-3028.69145512,0.00023,2]
[365745094,1749868241876,-57463.10125776,0.00023,20]
[365745095,1749868241885,-1329.44870529,0.00023,2]
[365745096,1749868241895,-200.0,0.00023,2]
[365745097,1749868241905,-705.31,0.00023036,4]
[365745098,1749868241915,-1295.86461362,0.00023038,8]
[365745099,1749868241924,-420.0,0.00023043,2]
[365745100,1749868241933,-728.0,0.00023072,2]
[365745101,1749868241943,-1608.89806048,0.00023073,2]
[365745102,1749868241952,-151.0,0.000231,9]
[365745103,1749868241961,-767.62,0.00023107,4]
[365745104,1749868241970,-3362.78,0.00023107,4]
[365745105,1749868241980,-587.77,0.00023107,4]
[365745106,1749868241991,-974.79,0.00023107,4]
[365745107,1749868242002,-460.0,0.00023107,4]
[365745108,1749868242011,-641.21,0.00023107,4]
[365745109,1749868242021,-791.92,0.00023107,4]
[365745110,1749868242031,-461.04,0.00023107,4]
[365745111,1749868242041,-460.0,0.00023107,4]
[365745112,1749868242050,-500.0,0.00023108,2]
[365745113,1749868242060,-507.470537,0.00023108,3]
[365745114,1749868242069,-460.0,0.00023108,4]
[365745115,1749868242079,-460.0,0.00023108,4]
[365745116,1749868242089,-460.0,0.00023108,4]
[365745117,1749868242098,-614.97,0.00023108,2]
[365745118,1749868242107,-460.0,0.00023108,4]
[365745119,1749868242116,-460.0,0.00023108,4]
[365745120,1749868242127,-460.0,0.00023108,4]
[365745121,1749868242136,-492.85,0.00023108,4]
[365745122,1749868242147,-460.0,0.00023108,4]
[365745123,1749868242159,-486.56,0.00023108,4]
[365745124,1749868242170,-323.32422134,0.00023108,4]
[365745125,1749868242179,-581.52,0.00023108,4]
[365745126,1749868242189,-460.0,0.00023108,4]
[365745127,1749868242199,-1231.38,0.00023108,4]
[365745128,1749868242208,-460.0,0.00023108,4]
[365745129,1749868242218,-460.0,0.00023108,4]
[365745130,1749868242227,-507.0,0.00023125,2]
[365745131,1749868242237,-705.31,0.00023136,4]
[365745132,1749868242247,-1295.86461362,0.00023141,8]
[365745133,1749868242256,-5888.0,0.00023165,2]
[365745134,1749868242265,-151.0,0.000232,9]
[365745135,1749868242275,-316.65156987,0.00023235,2]
[365745139,1749868242496,-705.31,0.00023236,2]
[365745140,1749868242506,-1295.86461362,0.00023245,8]
[365745141,1749868242515,-300.2312045,0.00023288,2]
[365745142,1749868242525,-1795.953565,0.00023297,3]
[365745143,1749868242534,-153.0,0.00023307,2]
[365745144,1749868242544,-153.0,0.00023307,2]
[365745145,1749868242553,-153.0,0.00023307,2]
[365745146,1749868242562,-153.0,0.00023307,2]
[365745147,1749868242571,-153.0,0.00023307,2]
[365745148,1749868242581,-176.96418779,0.00023315,2]
[365745150,1749868242590,-153.0,0.0002332,2]
[365745151,1749868242599,-705.31,0.00023336,6]
[365745153,1749868242609,-1295.86461362,0.00023348,9]
[365745154,1749868242618,-9012.8554264,0.0002335,2]
[365745155,1749868242628,-1608.89806048,0.0002338,2]
[365745156,1749868242638,-767.62,0.00023381,4]
[365745157,1749868242647,-3362.78,0.00023381,4]
[365745158,1749868242657,-587.77,0.00023381,4]
[365745159,1749868242666,-974.79,0.00023381,4]
[365745160,1749868242676,-460.0,0.00023381,4]
[365745161,1749868242687,-641.21,0.00023381,4]
[365745162,1749868242696,-791.92,0.00023381,4]
[365745163,1749868242706,-461.04,0.00023381,4]
[365745164,1749868242715,-460.0,0.00023381,4]
[365745165,1749868242725,-150.5165868,0.00023382,4]
[365745166,1749868242735,-519.88391592,0.00023382,4]
[365745167,1749868242744,-460.0,0.00023382,4]
[365745168,1749868242754,-614.97,0.00023382,2]
[365745169,1749868242763,-460.0,0.00023382,4]
[365745170,1749868242772,-460.0,0.00023382,4]
[365745171,1749868242781,-492.85,0.00023382,4]
[365745172,1749868242791,-460.0,0.00023382,4]
[365745173,1749868242801,-486.56,0.00023382,4]
[365745174,1749868242810,-581.52,0.00023382,4]
[365745175,1749868242820,-460.0,0.00023382,4]
[365745176,1749868242829,-1231.38,0.00023382,4]
[365745177,1749868242838,-460.0,0.00023382,4]
[365745178,1749868242847,-460.0,0.00023382,4]
[365745179,1749868242857,-160.0,0.000234,5]
[365745180,1749868242870,-161.10336283,0.000234,5]
[365745181,1749868242879,-151.0,0.000234,5]
[365745182,1749868242889,-3632.17,0.000234,2]
[365745183,1749868242899,-728.0,0.00023422,2]
[365745184,1749868242909,-705.31,0.00023436,4]
[365745185,1749868242919,-151.0,0.0002344,7]
[365745186,1749868242930,-5000.0,0.0002344,2]
[365745187,1749868242939,-151.0,0.0002345,7]
[365745188,1749868242949,-1295.86461362,0.00023452,9]
[365745189,1749868242958,-728.0,0.00023456,2]
[365745190,1749868242967,-965.355,0.00023459,2]
[365745191,1749868242976,-405.0,0.00023459,2]
[365745192,1749868242985,-405.0,0.00023459,2]
[365745193,1749868242994,-653.0,0.00023459,2]
[365745194,1749868243003,-507.0,0.00023489,2]
[365745195,1749868243012,-151.0,0.000235,6]
[365745196,1749868243021,-705.31,0.00023536,3]
[365745197,1749868243030,-200.0,0.00023538,2]
[365745198,1749868243040,-1295.86461362,0.00023555,9]
[365745199,1749868243049,-200.0,0.00023561,4]
[365745200,1749868243058,-152.3970261,0.00023561,4]
[365745201,1749868243067,-507.0,0.00023563,2]
[365745202,1749868243076,-200.0,0.00023566,2]
[365745203,1749868243086,-800.0,0.00023593,2]
[365745204,1749868243095,-49320.5345563,0.000236,2]
[365745205,1749868243104,-176.96418779,0.00023616,2]
[365745206,1749868243113,-705.31,0.00023636,5]
[365745207,1749868243123,-150.28992876,0.0002364,2]
[365745208,1749868243132,-1704.02,0.00023646,3]
[365745209,1749868243142,-852.0,0.00023646,3]
[365745210,1749868243151,-426.0,0.00023646,3]
[365745211,1749868243160,-767.62,0.00023655,4]
[365745212,1749868243169,-3362.78,0.00023655,4]
[365745213,1749868243178,-587.77,0.00023655,4]
[365745214,1749868243187,-974.79,0.00023655,4]
[365745215,1749868243196,-460.0,0.00023655,4]
[365745216,1749868243205,-641.21,0.00023655,4]
[365745217,1749868243215,-791.92,0.00023655,4]
[365745218,1749868243224,-461.04,0.00023655,4]
[365745219,1749868243234,-460.0,0.00023655,4]
[365745220,1749868243242,-500.0,0.00023656,2]
[365745221,1749868243252,-460.0,0.00023656,4]
[365745222,1749868243261,-614.97,0.00023656,2]
[365745223,1749868243270,-460.0,0.00023656,4]
[365745224,1749868243279,-227.09731211,0.00023656,4]
[365745225,1749868243287,-492.85,0.00023656,4]
[365745226,1749868243296,-460.0,0.00023656,4]
[365745227,1749868243306,-486.56,0.00023656,4]
[365745228,1749868243315,-581.52,0.00023656,4]
[365745229,1749868243325,-460.0,0.00023656,4]
[365745230,1749868243335,-1231.38,0.00023656,4]
[365745231,1749868243344,-460.0,0.00023656,4]
[365745232,1749868243353,-460.0,0.00023656,4]
[365745233,1749868243363,-1295.86461362,0.00023659,9]
[365745234,1749868243372,-164.28577677,0.0002368,4]
[365745235,1749868243382,-164.28577677,0.0002368,4]
[365745236,1749868243391,-164.28577677,0.0002368,4]
[365745237,1749868243400,-164.28577677,0.0002368,4]
[365745238,1749868243410,-164.28,0.0002368,4]
[365745239,1749868243419,-159.72228297,0.0002368,4]
[365745240,1749868243429,-159.72228297,0.0002368,4]
[365745241,1749868243438,-159.72228297,0.0002368,4]
[365745242,1749868243448,-159.72228297,0.0002368,4]
[365745243,1749868243457,-159.72228297,0.0002368,4]
[365745244,1749868243467,-159.72228297,0.0002368,4]
[365745245,1749868243476,-159.72228297,0.0002368,4]
[365745246,1749868243486,-159.72228297,0.0002368,4]
[365745247,1749868243495,-159.72228297,0.0002368,4]
[365745248,1749868243504,-159.72228297,0.0002368,4]
[365745249,1749868243514,-159.72228297,0.0002368,4]
[365745250,1749868243524,-1608.89806048,0.00023686,2]
[365745251,1749868243533,-200.0,0.00023695,2]
[365745252,1749868243543,-151.0,0.000237,6]
[365745253,1749868243552,-151.0,0.000237,9]
[365745254,1749868243562,-167.63761846,0.000237,2]
[365745255,1749868243571,-159.72,0.000237,4]
[365745256,1749868243580,-215.0738,0.00023713,2]
[365745257,1749868243589,-705.31,0.00023736,7]
[365745258,1749868243598,-507.0,0.00023736,2]
[365745259,1749868243608,-1295.86461362,0.00023762,9]
[365745260,1749868243618,-316.65156987,0.00023771,2]
[365745261,1749868243628,-500.0,0.00023773,2]
[365745262,1749868243637,-500.0,0.00023773,2]
[365745263,1749868243647,-502.24838688,0.00023773,2]
[365745264,1749868243656,-500.14996127,0.00023773,2]
[365745265,1749868243665,-500.0,0.00023773,2]
[365745266,1749868243674,-500.0,0.00023773,2]
[365745267,1749868243767,-500.98830008,0.00023773,2]
[365745268,1749868243776,-500.0,0.00023773,2]
[365745269,1749868243786,-514.33,0.00023773,2]
[365745270,1749868243796,-501.18193787,0.00023773,2]
[365745271,1749868243805,-500.0,0.00023773,2]
[365745272,1749868243814,-500.0,0.00023773,2]
[365745273,1749868243823,-500.0,0.00023773,2]
[365745274,1749868243832,-501.05540923,0.00023773,2]
[365745275,1749868243841,-500.0,0.00023773,2]
[365745276,1749868243850,-500.0,0.00023773,2]
[365745277,1749868243861,-500.0,0.00023773,2]
[365745278,1749868243870,-501.41379653,0.00023773,2]
[365745279,1749868243880,-504.81255339,0.00023773,2]
[365745280,1749868243889,-500.0,0.00023773,2]
[365745281,1749868243899,-500.0,0.00023773,2]
[365745282,1749868243908,-500.0,0.00023773,2]
[365745283,1749868243917,-600.0,0.00023773,2]
[365745284,1749868243926,-151.99757932,0.00023773,2]
[365745285,1749868243936,-513.4045382,0.00023773,2]
[365745286,1749868243945,-500.0,0.00023773,2]
[365745287,1749868243954,-501.36108504,0.00023773,2]
[365745289,1749868243963,-500.0,0.00023773,2]
[365745291,1749868243972,-501.03395832,0.00023773,2]
[365745293,1749868243982,-500.0,0.00023773,2]
[365745295,1749868243991,-503.95759665,0.00023773,2]
[365745296,1749868244001,-151.0,0.00023773,7]
[365745297,1749868244012,-28974.77339139,0.0002378,2]